Cogmind - Beta 13 @@@ ROGUE MODE // 2024.05.04 @ 05:53:40 Player: Steve the JanitorBot Result: Destroyed by H-61 Shepherd with Heavy Assault Cannon Performance ------------- Evolutions (2) 1000 Regions Visited (3) 600 Robots Destroyed (46) 230 Value Destroyed (1739) 1739 Prototype IDs (0) 0 Alien Tech Used (0) 0 Bonus (78) 78 TOTAL SCORE: 3647 Bonus ------- High Alert Combat Kills 78 Cogmind --------- Core Integrity 0/550 Matter 43/300 Energy 71/100 System Corruption 0% Temperature Cool (59) Movement Core (1450) Ox28 Location -8/Materials Parts ------- > --- POWER (1) -------- (None) > --- PROPULSION (2) --- (None) > --- UTILITY (6) ------ Huge Storage Unit Improved Targeting Computer Target Analyzer > --- WEAPON (2) ------- Heavy Particle Cannon > --- INVENTORY (25) --- Heat Sink Advanced Heat Sink High-capacity Storage Unit High-capacity Storage Unit Small Matter Pod (0) Small Matter Pod (0) Small Matter Pod (0) Small Matter Pod (0) Compact Matter Pod (0) Compact Matter Pod (0) Improved Weapon Shielding Medium Armor Plating Hacking Suite Peak State ------------ > --- POWER ------------ Light Nuclear Core > --- PROPULSION ------- Light Treads Light Treads > --- UTILITY ---------- Huge Storage Unit Improved Targeting Computer Target Analyzer Target Analyzer Heavy Armor Plating > --- WEAPON ----------- Missile Launcher Missile Launcher > --- INVENTORY -------- Light Ion Engine Heat Sink Advanced Heat Sink High-capacity Storage Unit High-capacity Storage Unit Small Matter Pod Small Matter Pod Small Matter Pod Small Matter Pod Compact Matter Pod Compact Matter Pod Improved Weapon Shielding Light Armor Plating Medium Armor Plating Medium Armor Plating Hacking Suite Heavy Particle Cannon Assault Cannon Grenade Launcher Improved Grenade Launcher [Rating: 30] Favorites ----------- Power Ion Engine Engine Ion Engine Power Core Light Nuclear Core Propulsion Wheel Treads Light Treads Wheel Wheel Utility Light Armor Plating Storage High-capacity Storage Unit Processor Target Analyzer Protection Light Armor Plating Weapon Missile Launcher Energy Gun Small Laser Energy Cannon Heavy Particle Cannon Ballistic Gun Light Assault Rifle Ballistic Cannon Assault Cannon Launcher Missile Launcher Build | -11 -10 -9 -8 ------- Run | Yrd Mat Mat Mat Slots Evolved 4 | . . 2 2 Power . | . . . . Propulsion . | . . . . Utility 4 | . . 2 2 Weapon . | . . . . Parts Attached 59 | 6 11 13 29 Power 4 | 1 . 1 2 Engine 3 | 1 . 1 1 Core 1 | . . . 1 Reactor . | . . . . Propulsion 8 | 2 . 3 3 Treads 4 | 2 . . 2 Leg . | . . . . Wheel 4 | . . 3 1 Hover . | . . . . Flight . | . . . . Utility 30 | 1 8 6 15 Device . | . . . . Storage 11 | 1 5 . 5 Processor 3 | . . . 3 Hackware . | . . . . Protection 16 | . 3 6 7 Artifact . | . . . . Weapon 17 | 2 3 3 9 Energy Gun 2 | . 2 . . Energy Cannon 1 | . . . 1 Ballistic Gun 3 | 2 . 1 . Ballistic Cannon 2 | . . . 2 Launcher 9 | . 1 2 6 Special Weapon . | . . . . Impact Weapon . | . . . . Slashing Weapon . | . . . . Piercing Weapon . | . . . . Special Melee Weapon . | . . . . Unidentified Prototypes . | . . . . Parts Lost 23 | . . 1 22 Power 2 | . . . 2 Propulsion 5 | . . 1 4 Utility 10 | . . . 10 Weapon 6 | . . . 6 Highest Loss Streak 13 | . . 1 13 To Critical Strikes . | . . . . Average Slot Usage (%) 90 | . 92 96 86 Engine 6 | . 14 11 . Core 4 | . . . 7 Treads 9 | . 28 1 4 Wheel 9 | . . 18 11 Storage 11 | . 15 11 9 Processor 4 | . . . 8 Protection 23 | . 5 31 28 Energy Gun 8 | . 20 12 . Ballistic Gun 3 | . 6 7 . Launcher 7 | . . 2 13 Naked Turns . | . . . . Heaviest Build 125 | 13 88 69 125 Greatest Support 40 | 40 40 40 40 Greatest Overweight (x) 30 | 3 2 6 30 Average Overweight (x) 2 | . . 3 4 Largest Inventory Capacity 25 | 8 20 20 25 Average Capacity 19 | 7 12 20 23 Most Carried 25 | 4 15 20 25 Average Carried 15 | 2 9 17 19 Final Capacity 25 | 8 20 20 25 Final Carried 15 | 4 15 14 13 Class Distribution -------------------- 100% | Mutant Dominant Class ---------------- Mutant | -10/Materials Mutant | -9/Materials Mutant | -8/Materials Resources | -11 -10 -9 -8 ----------- Run | Yrd Mat Mat Mat Matter Collected 1275 | 234 95 484 462 Remotely . | . . . . Salvage Created 1236 | . 114 481 641 Parts 66 | . 3 25 38 Haulers Intercepted 2 | . . 1 1 Recyclers Shooed . | . . . . Parts Field Recycled . | . . . . Retrieved Matter . | . . . . Parts Self-Destructed . | . . . . Prevented . | . . . . Kills | -11 -10 -9 -8 ------- Run | Yrd Mat Mat Mat Combat Hostiles Destroyed 33 | . 3 10 20 Guns 8 | . 2 6 . Cannons 2 | . . . 2 AOE 23 | . 1 4 18 Classes Destroyed 8 | . 1 4 3 Worker 5 | . . 1 4 Hauler 2 | . . 1 1 Recycler 1 | . . . 1 Operator 1 | . . . 1 Watcher 4 | . . 1 3 Grunt 25 | . 3 8 14 Sentry 6 | . . 2 4 Hunter 2 | . . . 2 Best Kill Streak 6 | . 2 5 6 Combat Bots Only 5 | . 2 4 5 Max Kills in Single Turn 4 | . 1 3 4 Gunslinging . | . . . . Exploded 3 | . 1 2 3 Melee . | . . . . Uniques/NPCs Destroyed . | . . . . Combat | -11 -10 -9 -8 -------- Run | Yrd Mat Mat Mat Hostile Shots Fired 283 | . 32 57 194 Missed 93 | . 8 16 69 Damage Taken 3639 | . 309 534 2796 Core 636 | . 54 30 552 Absorbed by Shields . | . . . . Regen/Repaired (Parts) 111 | . . 111 . Core Remaining (%) 90 | 100 78 92 . Volleys Fired 108 | . 25 42 41 Largest 2 | . 2 2 2 Hottest 119 | . 90 90 119 Shots Fired 187 | . 37 80 70 Gun 110 | . 36 74 . Cannon 13 | . . . 13 Launcher 64 | . 1 6 57 Special . | . . . . Kinetic 53 | . 18 27 8 Thermal 70 | . 18 47 5 Explosive 64 | . 1 6 57 Electromagnetic . | . . . . Robot Hit Streak 6 | . 5 6 6 Robot Miss Streak 7 | . 2 7 3 Penetration Max . | . . . . Secondary Targets 1 | . . 1 . Max Gunslinging Chain 1 | . . 1 . Shots Hit Robots 99 | . 20 41 38 Core Hits 103 | . 7 28 68 Critical Kills 1 | . . 1 . Critical Parts Destroyed . | . . . . Critical Strikes 2 | . . 1 1 Destroy 1 | . . 1 . Blast 1 | . . . 1 Melee Attacks . | . . . . Impact . | . . . . Slashing . | . . . . Piercing . | . . . . Sneak Attacks . | . . . . Combat Hostiles . | . . . . Follow-up Attacks . | . . . . Damage Inflicted 4409 | . 322 763 3324 Guns 672 | . 271 401 . Cannons 221 | . . . 221 Explosions 3496 | . 51 362 3083 Melee . | . . . . Ramming 20 | . . . 20 Kinetic 339 | . 111 82 146 Thermal 554 | . 160 319 75 Explosive 3453 | . 51 362 3040 Electromagnetic 43 | . . . 43 Impact . | . . . . Slashing . | . . . . Piercing . | . . . . Highest Corruption . | . . . . Average Corruption . | . . . . Corruption Purged . | . . . . Corruption Blocked . | . . . . Overload Shots . | . . . . Overflow Damage 48 | . . . 48 Projectiles . | . . . . Explosions 48 | . . . 48 Melee . | . . . . Knockbacks 1 | . . . 1 Impact . | . . . . Kinetic 1 | . . . 1 Secondary . | . . . . Self-Inflicted Damage 147 | . 24 . 123 Shots 8 | . 1 . 7 Rammed 2 | . . . 2 Targets Rammed 2 | . . . 2 Kicked . | . . . . Crushed . | . . . . Highest Temperature 334 | . 258 334 237 Average Temperature 85 | . 109 104 61 Received Heat Transfer 1155 | . 162 264 729 Siege Activations . | . . . . Robots Corrupted . | . . . . Combat Hostiles . | . . . . Parts Fried . | . . . . Impact Corruptions . | . . . . Robots Melted . | . . . . Combat Hostiles . | . . . . Parts Melted 2 | . . 2 . Heat Transferred 1317 | . 410 796 111 Parts Sabotaged . | . . . . Parts Stolen . | . . . . Parts Stripped . | . . . . Power Chain Reactions . | . . . . Alert | -11 -10 -9 -8 ------- Run | Yrd Mat Mat Mat Peak Influence 592 | . 93 210 592 Initial 61 | . . . 61 Average 204 | . 36 104 352 Maximum Alert Level 2 | . . 1 2 Low Security (%) 57 | 100 100 93 16 Level 1 20 | . . 6 37 Level 2 22 | . . . 45 Level 3 . | . . . . Level 4 . | . . . . Level 5 . | . . . . High Security . | . . . . Max Security . | . . . . Squads Dispatched 8 | . 1 3 4 Investigation 5 | . . 3 2 Extermination . | . . . . Reinforcement 2 | . 1 . 1 Assault 1 | . . . 1 Garrison . | . . . . Intercept . | . . . . Searches Triggered . | . . . . Construction Impeded . | . . . . Haulers Reinforced . | . . . . Active Scanning Responses . | . . . . Cargo Convoy Interrupts . | . . . . Stealth | -11 -10 -9 -8 --------- Run | Yrd Mat Mat Mat Distress Signals 7 | . 1 3 3 Communications Jammed . | . . . . Distress Signals . | . . . . Times Spotted 56 | . 8 17 31 Peak Tracking Total 7 | . 4 3 7 Tactical Retreats . | . . . . Traps | -11 -10 -9 -8 ------- Run | Yrd Mat Mat Mat Traps Triggered 1 | . . . 1 Indirectly . | . . . . Trap Hack Attempts . | . . . . Triggered . | . . . . Disarmed . | . . . . Reprogrammed . | . . . . Reused . | . . . . Traps Extracted . | . . . . Installed . | . . . . Triggered . | . . . . Machines | -11 -10 -9 -8 ---------- Run | Yrd Mat Mat Mat Machines Disabled 8 | . . . 8 Max in Single Turn 1 | . . . 1 Garrison Access 1 | . . . 1 Machines Repaired . | . . . . Machines Dismantled . | . . . . Machines Sabotaged . | . . . . Overloaded Fab Kills . | . . . . Hacking | -11 -10 -9 -8 --------- Run | Yrd Mat Mat Mat Machines Accessed 10 | . 4 4 2 Terminals 4 | . 2 1 1 Fabricators . | . . . . Repair Stations 1 | . . 1 . Recycling Units 4 | . 2 1 1 Scanalyzers 1 | . . 1 . Garrison Access . | . . . . Total Hacks 32 | . 11 14 7 Successful 25 | . 9 10 6 Failed 7 | . 2 4 1 Catastrophic 1 | . . . 1 Database Lockouts . | . . . . Manual . | . . . . Terminals 11 | . 3 4 4 Fabricators . | . . . . Repair Stations 4 | . . 4 . Recycling Units 13 | . 8 2 3 Scanalyzers 4 | . . 4 . Garrison Access . | . . . . Terminal Hacks 7 | . 1 3 3 Record 6 | . . 3 3 Repair Station Index 1 | . 1 . . Fabricator Hacks . | . . . . Repair Station Hacks 2 | . . 2 . Scan Component 1 | . . 1 . Repair 1 | . . 1 . Recycling Unit Hacks 12 | . 8 1 3 Process 4 | . 3 . 1 Report Inventory 4 | . 2 1 1 Retrieve Matter 4 | . 3 . 1 Scanalyzer 4 | . . 4 . Insert Component 2 | . . 2 . Analyze 2 | . . 2 . Garrison Access Hacks . | . . . . Unauthorized Hacks . | . . . . Terminals . | . . . . Fabricators . | . . . . Repair Stations . | . . . . Recycling Units . | . . . . Scanalyzers . | . . . . Garrison Access . | . . . . Data Cores Recovered . | . . . . Used . | . . . . Hacking Detections 7 | . 2 3 2 Full Trace Events 4 | . . 3 1 Feedback Events . | . . . . Feedback Blocked . | . . . . Robot Schematics Acquired . | . . . . Robots Built . | . . . . Authchips . | . . . . Time . | . . . . Total Robot Build Rating . | . . . . Part Schematics Acquired 2 | . . 2 . Parts Built . | . . . . Authchips . | . . . . Time . | . . . . Total Part Build Rating . | . . . . Parts Repaired 1 | . . 1 . Time 32 | . . 32 . Parts Recycled . | . . . . Recycled Matter 60 | . 33 . 27 Retrieved Matter 60 | . 33 . 27 Retrieved Components . | . . . . Parts Scanalyzed 2 | . . 2 . Part Schematics Acquired 2 | . . 2 . Parts Damaged . | . . . . Bothacking | -11 -10 -9 -8 ------------ Run | Yrd Mat Mat Mat Used RIF Installer . | . . . . Robots Hacked . | . . . . Non-combat . | . . . . Combat . | . . . . Robot Hacks Applied . | . . . . Relay Couplers Released 1 | . . . 1 Machine Destruction 1 | . . . 1 Fabnet Peak Effective % . | . . . . Robots Rewired . | . . . . Allies Hacked . | . . . . Hacks Repelled . | . . . . Allies | -11 -10 -9 -8 -------- Run | Yrd Mat Mat Mat Total Allies . | . . . . Largest Group . | . . . . Highest-Rated Group . | . . . . Highest-Rated Ally . | . . . . Total Orders . | . . . . Ally Attacks . | . . . . Total Damage . | . . . . Kills . | . . . . Allies Corrupted . | . . . . Allies Melted . | . . . . Intel | -11 -10 -9 -8 ------- Run | Yrd Mat Mat Mat Robot Analysis Total . | . . . . Derelict Logs Recovered . | . . . . Drone Launches . | . . . . Drone Recoveries . | . . . . Exploration | -11 -10 -9 -8 ------------- Run | Yrd Mat Mat Mat Turns Passed 2373 | 116 588 500 1169 Spaces Moved 1120 | 72 260 260 528 Core 28 | 25 . . 3 Treads 401 | 47 260 14 80 Legs . | . . . . Wheels 691 | . . 246 445 Hover . | . . . . Flight . | . . . . Fastest Speed 50 | 50 160 125 125 Average Speed 172 | 140 190 134 185 Slowest Speed 1550 | 200 320 240 1550 Overloaded Moves . | . . . . Propulsion Burnouts . | . . . . Robots Hopped . | . . . . Cave-ins Triggered . | . . . . Exploration Rate (%) 29 | 4 40 27 48 Regions Visited 3 Branch Regions . Pre-discovered Areas . | . . . . Known Exits Taken . | . . . . Unknown Exits Taken 3 | 1 1 1 . Scrap Searched . | . . . . Spaces Dug . | . . . . Terrain Destroyed 347 | . 5 26 316 Melee . | . . . . Projectile 2 | . . . 2 AOE 345 | . 5 26 314 Terrain Rammed . | . . . . Walls Destroyed . | . . . . Machines Disabled . | . . . . Actions | -11 -10 -9 -8 --------- Run | Yrd Mat Mat Mat Total 1370 | 87 314 334 635 Wait 15 | . 5 4 6 Move 1117 | 71 259 259 528 Hop . | . . . . Pick Up 51 | 10 12 9 20 Fast Attach 1 | . 1 . . Attach 31 | 6 . 3 22 Detach 4 | . . . 4 Swap 27 | . 10 10 7 Drop 14 | . 2 7 5 Fire 108 | . 25 42 41 Melee . | . . . . Ram 2 | . . . 2 Kick . | . . . . Crush . | . . . . Escape Stasis . | . . . . Rewire . | . . . . Trap . | . . . . Miscellaneous . | . . . . Route ------- -11/Scrapyard -10/Materials -9/Materials (discovered 2 exits: *Mat / [*Min]) -8/Materials History --------- Turn | Location | Event 4 | -11/Scrapyard | Discovered new exit (range 16) 117 | -11/Scrapyard | Entered Materials 309 | -10/Materials | Build established: Mutant 349 | -10/Materials | Discovered new exit (range 16) 705 | -10/Materials | Entered another Materials area 705 | -9/Materials | Evolved 2 slots: Utility x2 1105 | -9/Materials | Discovered new exit (range 15) 1164 | -9/Materials | Repaired Med. Armor Plating? 1170 | -9/Materials | Discovered new exit (range 10) 1205 | -9/Materials | Entered another Materials area 1205 | -8/Materials | Evolved 2 slots: Utility x2 2345 | -8/Materials | Core integrity fell below 50% 2361 | -8/Materials | Core integrity fell below 20% 2374 | -8/Materials | Destroyed by H-61 Shepherd with Heavy Assault Cannon Last Messages --------------- K-01 Serf collects debris. Knocked back. K-01 Serf collects debris. Knocked back. K-01 Serf collects debris. K-01 Serf destroyed. Assault Cannon destroyed. The unstable cave ceiling collapses. Critical hit (Burn: +37). Acquired 2 matter. Knocked back. Acquired 39 matter. Knocked back. M-28 Smith repairs G-47 Trooper. M-28 Smith repairs Particle Gun. Lgt. Ion Engine destroyed. W-25 Informer sends out distress signal. U-05 Engineer builds a Wall. G-47 Trooper destroyed. M-28 Smith repairs H-61 Shepherd. Map ----- +----------------------------------------------------+ | """" # = !"" #?????????????????? | | # """" ## #?????????????????? | | """ ## #?????????????????? | | ?? + ?????????????????? | | ### ?????### " ?????????????????? | | ??####??????# "" #?????????????????? | | ????????????### "" #?????????????????? | | ??????????????## " " """ #?????????????????? | | ???????????????# "" "" #?????????????????? | | ???????????????# """ """ #?????????????????? | | ???????????????# """ """ #?????????????????? | | ???????????????# """ """ #?????????????????? | | ???????????????+ " " #?????????????????? | | ???????????????# #?????????????????? | | ???????????????# #?????????????????? | | ???????????????############# #?????????????????? | | ???????????????????????????# #?????????????????? | | ???????????????????????????# ########??????????? | | ?????????????????????????### # = #??????????? | | ?????????????????????????# #u #??????????? | | ??????""??????????????#### # """ #??????????? | | ????? ???#########;;; w """ #??????????? | | ??? ## """ #??????????? | | ?????# # #; %% % % #??????????? | | ????# # % %# #+####??????????? | | ????# m =$* % @ #???????????????? | | ????# H = % #???????????????? | | ????# %!* # #???????????????? | | ???? # ## = ####???????????????? | | ????## ## =% #?????????????????? | | ?????# ]]!!**#######! "" ;#????????????????? | | ?????# ###]]!!**??????# "G" [;#????????????????? | | ?????? ???#######??????# " " ##????????????????? | | ?????? ?????????????????# #?????????????????? | | ????????????????????????? #?????????????????? | | ?????????????????????????#####?#?????????????????? | | ?????????????????????????????????????????????????? | | ?????????????????????????????????????????????????? | | ?????????????????????????????????????????????????? | | ?????????????????????????????????????????????????? | | ?????????????????????????????????????????????????? | | ?????????????????????????????????????????????????? | | ?????????????????????????????????????????????????? | | ?????????????????????????????????????????????????? | | ?????????????????????????????????????????????????? | | ?????????????????????????????????????????????????? | | ?????????????????????????????????????????????????? | | ?????????????????????????????????????????????????? | | ?????????????????????????????????????????????????? | | ?????????????????????????????????????????????????? | +----------------------------------------------------+ Best States ------------- Heat Dissipation 31 Energy Generation 14 Energy Capacity 250 Matter Stores 300 Matter Capacity 350 Sight Range 16 Terrain Scan Density 10 Armor Coverage 1125 Evasion (%) 40 Targeting Accuracy 6 Target Analysis 7 Recoil Reduction 2 Item Schematics ----------------- Med. Armor Plating | -9/Materials | Scanalyzed Lgt. Armor Plating | -9/Materials | Scanalyzed Robot Schematics ------------------ None Fabricated ------------ Nothing Alien Tech Used ----------------- None Achievements -------------- Part-time Mechanic Challenges ------------ None Game ------ Seed MatterScanCutter Manual? 0 Play Time 00:32:17 Cumulative 2.9 hours Start 2024.05.04 @ 05:22:03 End 2024.05.04 @ 05:53:40 Sessions 1 Manual Loads 0 Difficulty Rogue Special Mode None Game No. 4 Rogue 4 Adventurer 0 Explorer 0 Win Type - Total 0 Types 0/0/0/0/0/0/0/0/0 Lore% 2 Gallery% 7 Achievement% 5 Wizard Run 0 Options --------- Layout 1 ASCII 0 Keyboard 0 Movement Mouse Keybinds 0 Fullscreen 1 Font 24/Smallcaps Map View 50x35 Zoom Use 0% Tactical HUD 0 Map Filters NONE Filters NONE Steam 1 RUN: 060d025d-e176-4109-b86e-498d61e7d569